[Event "CZE-ch Amateurs 2022"]
[Site "Luhacovice"]
[Date "2022.03.17"]
[Round "7.17"]
[White "Lukastik, David"]
[Black "Lorenc, Tomas"]
[Result "1/2-1/2"]
[ECO "A59"]
[WhiteElo "1854"]
[BlackElo "2183"]
[Annotator "ChessBase"]
[PlyCount "134"]
[EventDate "2022.03.12"]
[EventType "swiss"]
[EventCountry "CZE"]
[SourceTitle "playchess.com"]
[Source "ChessBase"]
[SourceQuality "1"]
[TimeControl "5400+30"]

1. d4 {[%emt 0:00:05]} Nf6 {[%emt 0:01:30]} 2. c4 {[%emt 0:01:10]} c5 {[%emt 0:00:21]} 3. d5 {[%emt 0:00:08]} b5 {[%emt 0:00:05]} 4. cxb5 {[%emt 0:00:07]} a6 {[%emt 0:00:05]} 5. bxa6 {[%emt 0:00:10]} Bxa6 {[%emt 0:00:10]} 6. Nc3 {[%emt 0:00:20]} d6 {[%emt 0:00:15]} 7. e4 {[%emt 0:00:27]} Bxf1 {[%emt 0:00:11]} 8. Kxf1 {[%emt 0:00:08]} Nbd7 {[%emt 0:00:04]} 9. Nf3 {[%emt 0:01:00]} g6 {[%emt 0:00:26]} 10. g3 {[%emt 0:00:26]} Bg7 {[%emt 0:00:07]} 11. Kg2 {[%emt 0:00:16]} O-O {[%emt 0:00:03]} 12. Re1 {[%emt 0:00:12]} Qa5 {[%emt 0:02:22]} 13. a4 {[%emt 0:00:51]} Rfb8 {[%emt 0:01:44]} 14. Qc2 {[%emt 0:11:57]} Ng4 {[%emt 0:06:44]} 15. Bd2 {[%emt 0:02:36]} Qb4 {[%emt 0:00:57]} 16. h3 {[%emt 0:04:51]} Nge5 {[%emt 0:05:33]} 17. Nxe5 {[%emt 0:05:34]} Nxe5 {[%emt 0:00:43]} 18. Nb5 {[%emt 0:00:19]} Qc4 {[%emt 0:00:17]} 19. Bc3 {[%emt 0:00:52]} Nd3 {[%emt 0:03:26]} 20. b3 {[%emt 0:06:21]} Nxe1+ {[%emt 0:04:17]} 21. Rxe1 {[%emt 0:00:26]} Bxc3 {[%emt 0:00:15]} 22. bxc4 {[%emt 0:02:27]} Bxe1 {[%emt 0:00:03]} 23. f4 {[%emt 0:02:11]} Ba5 {[%emt 0:05:29]} 24. e5 {[%emt 0:02:06]} Ra6 {[%emt 0:01:50]} 25. Kf3 {[%emt 0:01:22]} Bd8 {[%emt 0:01:44]} 26. g4 {[%emt 0:01:59]} Rba8 {[%emt 0:01:56]} 27. Nc3 {[%emt 0:01:55]} dxe5 {[%emt 0:03:10]} 28. fxe5 {[%emt 0:00:16]} f6 {[%emt 0:01:03]} 29. exf6 {[%emt 0:02:28]} exf6 {[%emt 0:05:12]} 30. Qe4 {[%emt 0:01:07]} Bc7 {[%emt 0:07:15]} 31. Nb5 {[%emt 0:01:23]} Be5 {[%emt 0:08:04]} 32. d6 {[%emt 0:03:06]} Rxa4 {[%emt 0:00:39]} 33. Qd5+ {[%emt 0:00:46]} Kf8 {[%emt 0:01:53]} 34. Qxc5 {[%emt 0:04:04]} Rd8 {[%emt 0:00:20]} 35. d7+ {[%emt 0:00:59]} Kf7 {[%emt 0:00:11]} 36. Nd6+ {[%emt 0:03:25]} Bxd6 {[%emt 0:00:31]} 37. Qxd6 {[%emt 0:00:10]} Ra7 {[%emt 0:00:15]} 38. Qd5+ {[%emt 0:01:02]} Kg7 {[%emt 0:00:09]} 39. g5 {[%emt 0:01:24]} Raxd7 {[%emt 0:01:56]} 40. gxf6+ {[%emt 0:00:13]} Kxf6 {[%emt 0:00:15]} 41. Qc6+ {[%emt 0:00:21]} Rd6 {[%emt 0:00:59]} 42. Qc7 {[%emt 0:01:34]} R8d7 {[%emt 0:01:16]} 43. Qc8 {[%emt 0:00:41]} Ke5 {[%emt 0:11:28]} 44. Qc5+ {[%emt 0:03:45]} Ke6 {[%emt 0:02:13]} 45. Qc8 {[%emt 0:05:42]} Rd3+ {[%emt 0:03:29]} 46. Ke2 {[%emt 0:00:15]} Ke5 {[%emt 0:01:24]} 47. Qc5+ {[%emt 0:02:12]} Kf4 {[%emt 0:01:16]} 48. Qf2+ {[%emt 0:00:57]} Ke4 {[%emt 0:00:35]} 49. Qh4+ {[%emt 0:00:39]} Kf5 {[%emt 0:01:17]} 50. Qg4+ {[%emt 0:02:51]} Ke5 {[%emt 0:00:24]} 51. Qg5+ {[%emt 0:01:08]} Kd4 {[%emt 0:01:04]} 52. c5 {[%emt 0:03:16]} Rd5 {[%emt 0:02:13]} 53. Qxd5+ {[%emt 0:00:41]} Kxd5 {[%emt 0:00:08]} 54. Kxd3 {[%emt 0:00:10]} Kxc5 {[%emt 0:00:01]} 55. Ke4 {[%emt 0:00:11]} Kd6 {[%emt 0:00:11]} 56. Kf4 {[%emt 0:00:18]} h6 {[%emt 0:00:34]} 57. h4 {[%emt 0:00:45]} Kd5 {[%emt 0:01:24]} 58. h5 {[%emt 0:07:30]} g5+ {[%emt 0:00:08]} 59. Kf5 {[%emt 0:00:13]} Kd6 {[%emt 0:02:47]} 60. Kg6 {[%emt 0:01:19]} g4 {[%emt 0:00:20]} 61. Kxh6 {[%emt 0:00:12]} g3 {[%emt 0:00:19]} 62. Kh7 {[%emt 0:00:47]} g2 {[%emt 0:00:15]} 63. h6 {[%emt 0:00:14]} g1=Q {[%emt 0:00:10]} 64. Kh8 {[%emt 0:00:10]} Qd4+ {[%emt 0:00:27]} 65. Kg8 {[%emt 0:00:23]} Qd5+ {[%emt 0:00:33]} 66. Kg7 {[%emt 0:00:27]} Qg5+ {[%emt 0:00:12]} 67. Kh7 {[%emt 0:00:21]} Ke7 {[%emt 0:00:17]} 1/2-1/2

[Event "CZE-ch Amateurs 2022"]
[Site "Luhacovice"]
[Date "2022.03.17"]
[Round "7.18"]
[White "Zabystrzan, Pavel"]
[Black "Strapec, Lukas"]
[Result "1-0"]
[ECO "D94"]
[WhiteElo "2162"]
[BlackElo "1835"]
[Annotator "ChessBase"]
[PlyCount "141"]
[EventDate "2022.03.12"]
[EventType "swiss"]
[EventCountry "CZE"]
[SourceTitle "playchess.com"]
[Source "ChessBase"]
[SourceQuality "1"]
[TimeControl "5400+30"]

1. Nf3 {[%emt 0:00:06]} d5 {[%emt 0:00:43]} 2. c4 {[%emt 0:00:08]} c6 {[%emt 0:00:49]} 3. e3 {[%emt 0:00:12]} Nf6 {[%emt 0:00:53]} 4. Nc3 {[%emt 0:00:07]} g6 {[%emt 0:01:22]} 5. d4 {[%emt 0:00:45]} Bg7 {[%emt 0:01:34]} 6. Be2 {[%emt 0:09:24]} O-O {[%emt 0:01:53]} 7. O-O {[%emt 0:00:10]} dxc4 {[%emt 0:02:49]} 8. Bxc4 {[%emt 0:00:10]} Nbd7 {[%emt 0:01:39]} 9. h3 {[%emt 0:02:28]} Nb6 {[%emt 0:06:16]} 10. Bb3 {[%emt 0:00:18]} Bf5 {[%emt 0:08:20]} 11. Qe2 {[%emt 0:01:04]} Be4 {[%emt 0:05:36]} 12. Nxe4 {[%emt 0:07:53]} Nxe4 {[%emt 0:00:34]} 13. Qc2 {[%emt 0:00:39]} Nd6 {[%emt 0:07:55]} 14. Bd2 {[%emt 0:07:27]} Nd7 {[%emt 0:09:20]} 15. Rac1 {[%emt 0:08:11]} Re8 {[%emt 0:06:44]} 16. Rfd1 {[%emt 0:01:05]} a5 {[%emt 0:05:42]} 17. a4 {[%emt 0:06:02]} e5 {[%emt 0:03:56]} 18. dxe5 {[%emt 0:04:18]} Nxe5 {[%emt 0:00:45]} 19. Nxe5 {[%emt 0:00:41]} Bxe5 {[%emt 0:03:57]} 20. Bc3 {[%emt 0:00:25]} Qf6 {[%emt 0:04:31]} 21. Bxe5 {[%emt 0:02:28]} Rxe5 {[%emt 0:08:26]} 22. Rd4 {[%emt 0:00:47]} Nf5 {[%emt 0:16:22]} 23. Rd7 {[%emt 0:00:39]} Re7 {[%emt 0:00:53]} 24. Rcd1 {[%emt 0:01:32]} Rae8 {[%emt 0:00:55]} 25. Bc4 {[%emt 0:02:26]} Rxd7 {[%emt 0:00:27]} 26. Rxd7 {[%emt 0:00:05]} Re7 {[%emt 0:00:25]} 27. Rd8+ {[%emt 0:01:16]} Kg7 {[%emt 0:00:08]} 28. Qd2 {[%emt 0:01:20]} Qe5 {[%emt 0:00:56]} 29. g4 {[%emt 0:09:15]} Nh4 {[%emt 0:00:35]} 30. Be2 {[%emt 0:00:11]} Qe4 {[%emt 0:00:29]} 31. Qd4+ {[%emt 0:00:29]} Re5 {[%emt 0:00:32]} 32. Qxe4 {[%emt 0:04:04]} Rxe4 {[%emt 0:00:03]} 33. b3 {[%emt 0:00:12]} Re7 {[%emt 0:00:55]} 34. Kh2 {[%emt 0:04:14]} g5 {[%emt 0:00:30]} 35. Kg3 {[%emt 0:00:20]} Ng6 {[%emt 0:00:29]} 36. Bd3 {[%emt 0:02:49]} Ne5 {[%emt 0:00:28]} 37. Bf5 {[%emt 0:00:08]} h6 {[%emt 0:00:34]} 38. f4 {[%emt 0:00:40]} Ng6 {[%emt 0:00:31]} 39. Kf2 {[%emt 0:02:09]} gxf4 {[%emt 0:00:22]} 40. exf4 {[%emt 0:00:08]} Nxf4 {[%emt 0:00:35]} 41. h4 {[%emt 0:00:06]} Nd5 {[%emt 0:00:32]} 42. Rb8 {[%emt 0:00:52]} b6 {[%emt 0:00:29]} 43. Bd3 {[%emt 0:01:59]} Re6 {[%emt 0:00:32]} 44. Bc4 {[%emt 0:00:49]} Re4 {[%emt 0:00:28]} 45. Rc8 {[%emt 0:01:18]} Re6 {[%emt 0:00:30]} 46. Rd8 {[%emt 0:00:59]} Rf6+ {[%emt 0:00:29]} 47. Kg3 {[%emt 0:00:24]} Nc3 {[%emt 0:00:32]} 48. Rb8 {[%emt 0:00:42]} Ne4+ {[%emt 0:00:24]} 49. Kg2 {[%emt 0:00:12]} c5 {[%emt 0:00:35]} 50. Bd5 {[%emt 0:01:12]} Nc3 {[%emt 0:00:31]} 51. Bc4 {[%emt 0:01:17]} Ne4 {[%emt 0:00:29]} 52. Bd5 {[%emt 0:00:24]} Nc3 {[%emt 0:00:25]} 53. Bc4 {[%emt 0:00:44]} Rf4 {[%emt 0:00:31]} 54. Rxb6 {[%emt 0:00:39]} Rxg4+ {[%emt 0:00:35]} 55. Kf3 {[%emt 0:00:50]} Rg6 {[%emt 0:00:31]} 56. Rb7 {[%emt 0:00:56]} Rf6+ {[%emt 0:00:26]} 57. Ke3 {[%emt 0:00:46]} Rf5 {[%emt 0:00:33]} 58. Ra7 {[%emt 0:00:46]} Nd1+ {[%emt 0:00:29]} 59. Ke4 {[%emt 0:01:53]} Rf6 {[%emt 0:00:33]} 60. Rxa5 {[%emt 0:00:40]} Nf2+ {[%emt 0:00:26]} 61. Kd5 {[%emt 0:00:59]} Rf5+ {[%emt 0:00:34]} 62. Kc6 {[%emt 0:00:14]} Ne4 {[%emt 0:00:29]} 63. Ra7 {[%emt 0:01:21]} Rf4 {[%emt 0:00:28]} 64. a5 {[%emt 0:00:45]} Rf6+ {[%emt 0:00:34]} 65. Kd5 {[%emt 0:01:14]} Re6 {[%emt 0:00:25]} 66. a6 {[%emt 0:01:02]} Kf6 {[%emt 0:00:32]} 67. Rc7 {[%emt 0:01:56]} Re5+ {[%emt 0:00:29]} 68. Kc6 {[%emt 0:00:15]} Nc3 {[%emt 0:00:34]} 69. Rxf7+ {[%emt 0:00:46]} Kg6 {[%emt 0:00:04]} 70. a7 {[%emt 0:00:26]} Re8 {[%emt 0:00:53]} 71. Rf3 {[%emt 0:00:28]} 1-0

[Event "CZE-ch Amateurs 2022"]
[Site "Luhacovice"]
[Date "2022.03.17"]
[Round "7.20"]
[White "Zemen, Pavel"]
[Black "Galicek, Stanislav"]
[Result "0-1"]
[ECO "B88"]
[WhiteElo "1767"]
[BlackElo "2079"]
[Annotator "ChessBase"]
[PlyCount "69"]
[EventDate "2022.03.12"]
[EventType "swiss"]
[EventCountry "CZE"]
[SourceTitle "playchess.com"]
[Source "ChessBase"]
[SourceQuality "1"]
[TimeControl "5400+30"]

1. e4 {[%emt 0:00:03]} c5 {[%emt 0:00:09]} 2. Nf3 {[%emt 0:00:04]} Nc6 {[%emt 0:00:40]} 3. d4 {[%emt 0:00:05]} cxd4 {[%emt 0:00:21]} 4. Nxd4 {[%emt 0:00:10]} Nf6 {[%emt 0:02:15]} 5. Nc3 {[%emt 0:00:17]} d6 {[%emt 0:05:09]} 6. Bc4 {[%emt 0:06:56]} e6 {[%emt 0:01:20]} 7. O-O {[%emt 0:03:45]} Be7 {[%emt 0:00:38]} 8. Bb3 {[%emt 0:03:11]} O-O {[%emt 0:00:37]} 9. Be3 {[%emt 0:01:17]} Na5 {[%emt 0:06:03]} 10. h3 {[%emt 0:02:53]} a6 {[%emt 0:01:42]} 11. Qd2 {[%emt 0:02:53]} b5 {[%emt 0:05:04]} 12. f3 {[%emt 0:02:16]} Bd7 {[%emt 0:16:32]} 13. Rfd1 {[%emt 0:01:53]} Qc7 {[%emt 0:01:50]} 14. Nce2 {[%emt 0:01:47]} Rab8 {[%emt 0:08:38]} 15. Bf2 {[%emt 0:04:21]} Rfc8 {[%emt 0:07:28]} 16. Rac1 {[%emt 0:03:35]} Nc4 {[%emt 0:04:13]} 17. Bxc4 {[%emt 0:04:00]} bxc4 {[%emt 0:01:00]} 18. b3 {[%emt 0:00:09]} g6 {[%emt 0:17:15]} 19. Nc3 {[%emt 0:07:16]} Nh5 {[%emt 0:04:27]} 20. Nde2 {[%emt 0:01:11]} Bb5 {[%emt 0:03:59]} 21. Kh1 {[%emt 0:05:23]} Bf8 {[%emt 0:00:50]} 22. Bd4 {[%emt 0:03:12]} Qe7 {[%emt 0:03:08]} 23. g4 {[%emt 0:09:00]} Nf6 {[%emt 0:01:02]} 24. Kg2 {[%emt 0:00:38]} Nd7 {[%emt 0:00:26]} 25. Ng3 {[%emt 0:01:31]} Ne5 {[%emt 0:01:36]} 26. Nce2 {[%emt 0:03:53]} Rc7 {[%emt 0:02:01]} 27. Bc3 {[%emt 0:03:07]} Be8 {[%emt 0:04:07]} 28. Bb4 {[%emt 0:01:12]} Rc6 {[%emt 0:00:34]} 29. f4 {[%emt 0:03:56]} Nd7 {[%emt 0:00:07]} 30. e5 {[%emt 0:01:04]} Rxb4 {[%emt 0:00:57]} 31. Qxb4 {[%emt 0:00:15]} dxe5 {[%emt 0:00:21]} 32. Qxe7 {[%emt 0:01:05]} Bxe7 {[%emt 0:00:03]} 33. Ne4 {[%emt 0:00:17]} f5 {[%emt 0:00:24]} 34. Kf3 {[%emt 0:07:20]} Bg5 {[%emt 0:00:50]} 35. Kg3 {[%emt 0:15:43]} 0-1

[Event "CZE-ch Amateurs 2022"]
[Site "Luhacovice"]
[Date "2022.03.19"]
[Round "9.1"]
[White "Sremanak, Slavomir"]
[Black "Buchcar, Tomas"]
[Result "0-1"]
[ECO "B10"]
[WhiteElo "2187"]
[BlackElo "2121"]
[Annotator "ChessBase"]
[PlyCount "80"]
[EventDate "2022.03.12"]
[EventType "swiss"]
[EventCountry "CZE"]
[SourceTitle "playchess.com"]
[Source "ChessBase"]
[SourceQuality "1"]
[TimeControl "5400+30"]

1. e4 {[%emt 0:11:13]} c6 {[%emt 0:00:09]} 2. d3 {[%emt 0:00:15]} g6 {[%emt 0:00:40]} 3. f4 {[%emt 0:00:11]} d5 {[%emt 0:01:09]} 4. Nd2 {[%emt 0:01:08]} Bg7 {[%emt 0:02:53]} 5. Ngf3 {[%emt 0:00:12]} Bg4 {[%emt 0:05:02]} 6. Be2 {[%emt 0:00:25]} e6 {[%emt 0:01:16]} 7. O-O {[%emt 0:03:48]} Nd7 {[%emt 0:13:04]} 8. a4 {[%emt 0:04:21]} Ngf6 {[%emt 0:07:26]} 9. h3 {[%emt 0:09:44]} Bxf3 {[%emt 0:01:10]} 10. Bxf3 {[%emt 0:00:15]} Qb6+ {[%emt 0:01:42]} 11. Kh1 {[%emt 0:00:44]} h5 {[%emt 0:00:47]} 12. a5 {[%emt 0:01:18]} Qc7 {[%emt 0:00:12]} 13. e5 {[%emt 0:00:30]} Ng8 {[%emt 0:00:34]} 14. b4 {[%emt 0:02:49]} Ne7 {[%emt 0:00:42]} 15. Nb3 {[%emt 0:00:36]} Nf5 {[%emt 0:01:00]} 16. Re1 {[%emt 0:01:05]} Bf8 {[%emt 0:01:22]} 17. Bd2 {[%emt 0:02:16]} Be7 {[%emt 0:03:29]} 18. Rg1 {[%emt 0:06:54]} c5 {[%emt 0:03:57]} 19. c4 {[%emt 0:01:49]} dxc4 {[%emt 0:01:56]} 20. Nxc5 {[%emt 0:05:39]} Nxc5 {[%emt 0:00:49]} 21. bxc5 {[%emt 0:00:06]} O-O {[%emt 0:03:56]} 22. a6 {[%emt 0:00:58]} Bxc5 {[%emt 0:00:31]} 23. axb7 {[%emt 0:00:08]} Rab8 {[%emt 0:00:58]} 24. Ba5 {[%emt 0:04:33]} Qe7 {[%emt 0:04:29]} 25. Rb1 {[%emt 0:01:21]} cxd3 {[%emt 0:08:00]} 26. g3 {[%emt 0:04:53]} Bxg1 {[%emt 0:07:59]} 27. Qxg1 {[%emt 0:01:07]} Qd7 {[%emt 0:00:17]} 28. Qxa7 {[%emt 0:01:10]} Qa4 {[%emt 0:05:13]} 29. Qc5 {[%emt 0:01:49]} Nxg3+ {[%emt 0:01:04]} 30. Kg2 {[%emt 0:01:12]} Qa2+ {[%emt 0:00:13]} 31. Kxg3 {[%emt 0:00:11]} Qxb1 {[%emt 0:00:10]} 32. f5 {[%emt 0:06:07]} exf5 {[%emt 0:02:42]} 33. e6 {[%emt 0:04:30]} fxe6 {[%emt 0:02:17]} 34. Bc3 {[%emt 0:03:15]} Rxb7 {[%emt 0:00:55]} 35. Qe5 {[%emt 0:00:17]} Kh7 {[%emt 0:00:46]} 36. Qxe6 {[%emt 0:06:39]} Qg1+ {[%emt 0:00:31]} 37. Kh4 {[%emt 0:00:13]} Qf2+ {[%emt 0:00:10]} 38. Kg5 {[%emt 0:00:10]} Qg3+ {[%emt 0:02:14]} 39. Bg4 {[%emt 0:00:07]} Rg8 {[%emt 0:00:31]} 40. Qd5 {[%emt 0:02:52]} Qe3+ {[%emt 0:00:52]} 0-1

[Event "CZE-ch Amateurs 2022"]
[Site "Luhacovice"]
[Date "2022.03.19"]
[Round "9.2"]
[White "Slepov, Kyryl"]
[Black "Vanek, Ladislav"]
[Result "1-0"]
[ECO "E04"]
[WhiteElo "2064"]
[BlackElo "2221"]
[Annotator "RC"]
[PlyCount "55"]
[EventDate "2022.03.12"]
[EventType "swiss"]
[EventCountry "CZE"]
[SourceTitle "playchess.com"]
[Source "ChessBase"]
[SourceQuality "1"]
[TimeControl "5400+30"]

1. d4 {[%emt 0:00:42]} d5 {[%emt 0:01:06]} 2. c4 {[%emt 0:01:04]} e6 {[%emt 0:00:56]} 3. Nf3 {[%emt 0:00:21]} Nf6 {[%emt 0:00:50]} 4. g3 {[%emt 0:00:11]} Bb4+ {[%emt 0:01:00]} 5. Bd2 {[%emt 0:00:12]} Be7 {[%emt 0:00:59]} 6. Bg2 {[%emt 0:00:11]} dxc4 {[%emt 0:02:01]} 7. O-O {[%emt 0:00:17]} a6 {[%emt 0:09:43]} 8. Qc2 {[%emt 0:02:22]} b5 {[%emt 0:00:49]} 9. a4 {[%emt 0:00:00]} Bb7 {[%emt 0:03:08]} 10. Na3 {[%emt 0:02:11]} Be4 {[%emt 0:02:11]} 11. Qc1 {[%emt 0:00:47]} Qd5 {[%emt 0:01:00]} 12. Nb1 {[%emt 0:04:33]} b4 {[%emt 0:01:22]} 13. Bf4 {[%emt 0:00:11]} Nc6 {[%emt 0:06:26]} 14. Rd1 {[%emt 0:01:14]} Rd8 {[%emt 0:07:24]} 15. Bxc7 {[%emt 0:00:59]} Rd7 {[%emt 0:00:06]} 16. Bb6 {[%emt 0:00:17]} Rb7 {[%emt 0:03:02]} 17. a5 {[%emt 0:01:04]} Qb5 {[%emt 0:07:36]} 18. Nbd2 {[%emt 0:04:27]} Bd5 {[%emt 0:00:11]} 19. e3 {[%emt 0:01:07]} Bd8 {[%emt 0:04:00]} 20. Bf1 {[%emt 0:00:48]} Bxb6 {[%emt 0:34:09]} 21. Nxc4 {[%emt 0:08:31]} Bc7 {[%emt 0:02:52]} 22. Nce5 {[%emt 0:01:58]} Nxe5 {[%emt 0:09:52]} 23. Bxb5+ {[%emt 0:01:56]} Rxb5 {[%emt 0:00:31]} 24. dxe5 {[%emt 0:01:32]} Bxf3 {[%emt 0:00:00]} 25. Qxc7 {[%emt 0:00:08]} O-O {[%emt 0:00:54]} 26. exf6 {[%emt 0:00:20]} Bxd1 {[%emt 0:00:05]} 27. Rxd1 {[%emt 0:00:23]} gxf6 {[%emt 0:00:04]} 28. Rd6 {[%emt 0:01:14]} 1-0

[Event "CZE-ch Amateurs 2022"]
[Site "Luhacovice"]
[Date "2022.03.19"]
[Round "9.3"]
[White "Jun, Rudolf"]
[Black "Pilch, Roman"]
[Result "1/2-1/2"]
[ECO "B06"]
[WhiteElo "2215"]
[BlackElo "2136"]
[Annotator "ChessBase"]
[PlyCount "44"]
[EventDate "2022.03.12"]
[EventType "swiss"]
[EventCountry "CZE"]
[SourceTitle "playchess.com"]
[Source "ChessBase"]
[SourceQuality "1"]
[TimeControl "5400+30"]

1. e4 {[%emt 0:00:05]} g6 {[%emt 0:00:31]} 2. d4 {[%emt 0:00:30]} Bg7 {[%emt 0:00:11]} 3. f4 {[%emt 0:00:15]} d5 {[%emt 0:01:46]} 4. e5 {[%emt 0:01:23]} h5 {[%emt 0:00:33]} 5. c4 {[%emt 0:01:21]} c6 {[%emt 0:01:30]} 6. Nc3 {[%emt 0:00:32]} Nh6 {[%emt 0:01:23]} 7. cxd5 {[%emt 0:03:02]} cxd5 {[%emt 0:00:42]} 8. Qb3 {[%emt 0:01:30]} e6 {[%emt 0:02:27]} 9. Nf3 {[%emt 0:01:27]} Nf5 {[%emt 0:00:29]} 10. Bd3 {[%emt 0:00:52]} Nc6 {[%emt 0:01:00]} 11. Nb5 {[%emt 0:02:11]} Bf8 {[%emt 0:01:32]} 12. Bd2 {[%emt 0:03:36]} Be7 {[%emt 0:05:01]} 13. Bxf5 {[%emt 0:05:52]} gxf5 {[%emt 0:00:16]} 14. O-O {[%emt 0:09:48]} a6 {[%emt 0:06:49]} 15. Nd6+ {[%emt 0:01:59]} Bxd6 {[%emt 0:03:58]} 16. exd6 {[%emt 0:00:07]} Qxd6 {[%emt 0:00:16]} 17. Rac1 {[%emt 0:00:16]} f6 {[%emt 0:01:55]} 18. Rfe1 {[%emt 0:00:33]} Kf7 {[%emt 0:00:53]} 19. Qb6 {[%emt 0:14:29]} a5 {[%emt 0:09:00]} 20. Rc5 {[%emt 0:04:17]} Ra6 {[%emt 0:00:57]} 21. Qb5 {[%emt 0:00:23]} Qd8 {[%emt 0:03:30]} 22. b3 {[%emt 0:02:40]} Rg8 {[%emt 0:05:26]} 1/2-1/2

[Event "CZE-ch Amateurs 2022"]
[Site "Luhacovice"]
[Date "2022.03.19"]
[Round "9.5"]
[White "Cagasik, Tomas"]
[Black "Urban, Zdenek"]
[Result "0-1"]
[ECO "A06"]
[WhiteElo "2177"]
[BlackElo "2093"]
[Annotator "ChessBase"]
[PlyCount "58"]
[EventDate "2022.03.12"]
[EventType "swiss"]
[EventCountry "CZE"]
[SourceTitle "playchess.com"]
[Source "ChessBase"]
[SourceQuality "1"]
[TimeControl "5400+30"]

1. Nf3 {[%emt 0:00:08]} c5 {[%emt 0:00:10]} 2. b3 {[%emt 0:00:58]} Nc6 {[%emt 0:00:41]} 3. Bb2 {[%emt 0:00:17]} d5 {[%emt 0:01:07]} 4. e3 {[%emt 0:00:28]} Nf6 {[%emt 0:01:19]} 5. Bb5 {[%emt 0:05:21]} Bd7 {[%emt 0:00:42]} 6. Nc3 {[%emt 0:01:19]} Qc7 {[%emt 0:03:02]} 7. d4 {[%emt 0:02:25]} e6 {[%emt 0:03:56]} 8. O-O {[%emt 0:01:54]} Bd6 {[%emt 0:02:41]} 9. Be2 {[%emt 0:04:05]} a6 {[%emt 0:00:13]} 10. h3 {[%emt 0:12:13]} O-O {[%emt 0:05:05]} 11. Rc1 {[%emt 0:10:28]} Rac8 {[%emt 0:06:17]} 12. dxc5 {[%emt 0:13:04]} Bxc5 {[%emt 0:00:16]} 13. Na4 {[%emt 0:00:11]} Be7 {[%emt 0:02:04]} 14. Nc3 {[%emt 0:10:52]} Rfd8 {[%emt 0:00:37]} 15. Nd4 {[%emt 0:01:31]} e5 {[%emt 0:02:59]} 16. Nxc6 {[%emt 0:00:52]} Bxc6 {[%emt 0:00:22]} 17. Nb1 {[%emt 0:04:01]} Bc5 {[%emt 0:03:41]} 18. Nd2 {[%emt 0:02:51]} Qe7 {[%emt 0:04:14]} 19. Nf3 {[%emt 0:01:56]} Bd6 {[%emt 0:00:39]} 20. Nh2 {[%emt 0:02:47]} Ne4 {[%emt 0:06:58]} 21. Bf3 {[%emt 0:04:07]} d4 {[%emt 0:03:06]} 22. exd4 {[%emt 0:01:33]} exd4 {[%emt 0:00:08]} 23. Re1 {[%emt 0:00:33]} f5 {[%emt 0:00:20]} 24. Nf1 {[%emt 0:01:18]} Bb4 {[%emt 0:00:20]} 25. Nd2 {[%emt 0:03:25]} Qh4 {[%emt 0:08:14]} 26. Bxe4 {[%emt 0:00:36]} fxe4 {[%emt 0:00:32]} 27. c3 {[%emt 0:03:30]} e3 {[%emt 0:00:14]} 28. fxe3 {[%emt 0:00:32]} dxe3 {[%emt 0:00:07]} 29. Nf3 {[%emt 0:01:21]} Qf2+ {[%emt 0:00:19]} 0-1

[Event "CZE-ch Amateurs 2022"]
[Site "Luhacovice"]
[Date "2022.03.19"]
[Round "9.6"]
[White "Bures, Vit"]
[Black "Novotny, Jaroslav"]
[Result "1/2-1/2"]
[ECO "B06"]
[WhiteElo "2121"]
[BlackElo "2190"]
[Annotator "ChessBase"]
[PlyCount "43"]
[EventDate "2022.03.12"]
[EventType "swiss"]
[EventCountry "CZE"]
[SourceTitle "playchess.com"]
[Source "ChessBase"]
[SourceQuality "1"]
[TimeControl "5400+30"]

1. d4 {[%emt 0:00:18]} g6 {[%emt 0:00:07]} 2. e4 {[%emt 0:00:07]} Bg7 {[%emt 0:00:08]} 3. Nc3 {[%emt 0:00:03]} d6 {[%emt 0:00:19]} 4. Be3 {[%emt 0:00:08]} a6 {[%emt 0:00:29]} 5. Qd2 {[%emt 0:00:35]} b5 {[%emt 0:01:03]} 6. f3 {[%emt 0:00:06]} Nd7 {[%emt 0:01:51]} 7. h4 {[%emt 0:00:06]} h6 {[%emt 0:01:04]} 8. Nh3 {[%emt 0:00:37]} Bb7 {[%emt 0:01:21]} 9. O-O-O {[%emt 0:00:10]} Rc8 {[%emt 0:02:07]} 10. Kb1 {[%emt 0:02:25]} c5 {[%emt 0:01:16]} 11. dxc5 {[%emt 0:00:26]} Nxc5 {[%emt 0:00:49]} 12. Bd4 {[%emt 0:00:41]} Nf6 {[%emt 0:11:53]} 13. g4 {[%emt 0:10:22]} Ne6 {[%emt 0:02:28]} 14. Be3 {[%emt 0:09:10]} Nd7 {[%emt 0:01:50]} 15. Nd5 {[%emt 0:01:28]} Ne5 {[%emt 0:01:39]} 16. Be2 {[%emt 0:01:03]} Nc4 {[%emt 0:04:39]} 17. Bxc4 {[%emt 0:00:28]} Rxc4 {[%emt 0:01:15]} 18. b3 {[%emt 0:02:55]} Rc8 {[%emt 0:01:22]} 19. Rhf1 {[%emt 0:09:35]} h5 {[%emt 0:10:00]} 20. gxh5 {[%emt 0:02:08]} Rxh5 {[%emt 0:00:37]} 21. Ng5 {[%emt 0:01:40]} Nxg5 {[%emt 0:07:22]} 22. hxg5 {[%emt 0:17:59]} 1/2-1/2

[Event "CZE-ch Amateurs 2022"]
[Site "Luhacovice"]
[Date "2022.03.19"]
[Round "9.7"]
[White "Zvolensky, David"]
[Black "Bokhnak, Timofey"]
[Result "1/2-1/2"]
[ECO "B42"]
[WhiteElo "2159"]
[BlackElo "1978"]
[Annotator "ChessBase"]
[PlyCount "32"]
[EventDate "2022.03.12"]
[EventType "swiss"]
[EventCountry "CZE"]
[SourceTitle "playchess.com"]
[Source "ChessBase"]
[SourceQuality "1"]
[TimeControl "5400+30"]

1. e4 {[%emt 0:00:03]} c5 {[%emt 0:00:11]} 2. Nf3 {[%emt 0:00:05]} e6 {[%emt 0:00:04]} 3. d4 {[%emt 0:00:03]} cxd4 {[%emt 0:00:04]} 4. Nxd4 {[%emt 0:00:11]} a6 {[%emt 0:00:01]} 5. Bd3 {[%emt 0:00:08]} Ne7 {[%emt 0:00:25]} 6. c4 {[%emt 0:00:16]} Nbc6 {[%emt 0:00:13]} 7. Nc2 {[%emt 0:00:31]} g6 {[%emt 0:00:23]} 8. O-O {[%emt 0:00:06]} Bg7 {[%emt 0:00:10]} 9. Nc3 {[%emt 0:00:10]} O-O {[%emt 0:00:25]} 10. Be2 {[%emt 0:00:06]} f5 {[%emt 0:02:40]} 11. Bg5 {[%emt 0:02:29]} Qa5 {[%emt 0:02:12]} 12. Bd2 {[%emt 0:15:30]} Qc7 {[%emt 0:00:11]} 13. Rb1 {[%emt 0:01:22]} b6 {[%emt 0:06:00]} 14. exf5 {[%emt 0:00:30]} Nxf5 {[%emt 0:00:24]} 15. Bf3 {[%emt 0:00:10]} Bb7 {[%emt 0:00:48]} 16. Ne3 {[%emt 0:10:45]} Ne5 {[%emt 0:15:55]} 1/2-1/2

[Event "CZE-ch Amateurs 2022"]
[Site "Luhacovice"]
[Date "2022.03.19"]
[Round "9.9"]
[White "Gabriel, Adam"]
[Black "Jedlicka, Ales"]
[Result "1/2-1/2"]
[ECO "A22"]
[WhiteElo "2097"]
[BlackElo "2223"]
[Annotator "RC"]
[PlyCount "21"]
[EventDate "2022.03.12"]
[EventType "swiss"]
[EventCountry "CZE"]
[SourceTitle "playchess.com"]
[Source "ChessBase"]
[SourceQuality "1"]
[TimeControl "5400+30"]

1. c4 {[%emt 0:00:17]} e5 {[%emt 0:01:26]} 2. Nc3 {[%emt 0:00:49]} Nf6 {[%emt 0:00:23]} 3. e3 {[%emt 0:00:50]} Bb4 {[%emt 0:00:34]} 4. Nge2 {[%emt 0:01:47]} O-O {[%emt 0:04:21]} 5. a3 {[%emt 0:00:07]} Be7 {[%emt 0:00:11]} 6. Ng3 {[%emt 0:05:50]} d5 {[%emt 0:01:29]} 7. cxd5 {[%emt 0:00:27]} Nxd5 {[%emt 0:00:24]} 8. Bc4 {[%emt 0:01:54]} c6 {[%emt 0:04:03]} 9. O-O {[%emt 0:00:33]} Na6 {[%emt 0:04:31]} 10. Bxd5 {[%emt 0:40:12]} cxd5 {[%emt 0:00:38]} 11. d4 {[%emt 0:00:08]} 1/2-1/2